[Event "Titled Tuesday Blitz March 15 Early 2022"]
[White "volunteers1998"]
[Black "Pourkashiyan, Atousa"]
[BlackFideId "12502014"]
[WhiteElo "2274"]
[BlackElo "2247"]
[Result "0-1"]
[Round "06"]
[TimeControl "180+1"]
[Date "2022.03.15"]
[WhiteClock "0:00:02"]
[BlackClock "0:00:49"]

1. e4 {[%clk 0:02:59]}  c5 {[%clk 0:02:57]} 2. Nf3 {[%clk 0:02:55]}  e6 {[%clk 0:02:55]} 3. d4 {[%clk 0:02:54]}  cxd4 {[%clk 0:02:56]} 4. Nxd4 {[%clk 0:02:53]}  a6 {[%clk 0:02:48]} 5. Nc3 {[%clk 0:02:53]}  Qc7 {[%clk 0:02:39]} 6. Be3 {[%clk 0:02:48]}  Nf6 {[%clk 0:02:38]} 7. Be2 {[%clk 0:02:43]}  Bb4 {[%clk 0:02:37]} 8. O-O {[%clk 0:02:40]}  Bxc3 {[%clk 0:02:37]} 9. bxc3 {[%clk 0:02:39]}  Nxe4 {[%clk 0:02:38]} 10. Qd3 {[%clk 0:02:35]}  d5 {[%clk 0:02:35]} 11. c4 {[%clk 0:02:31]}  O-O {[%clk 0:02:26]} 12. cxd5 {[%clk 0:02:17]}  exd5 {[%clk 0:02:27]} 13. c4 {[%clk 0:02:14]}  Nc5 {[%clk 0:02:25]} 14. Qc2 {[%clk 0:02:11]}  dxc4 {[%clk 0:02:17]} 15. Bxc4 {[%clk 0:02:09]}  Nbd7 {[%clk 0:02:13]} 16. Rac1 {[%clk 0:02:06]}  b6 {[%clk 0:01:56]} 17. Rfe1 {[%clk 0:01:41]}  Bb7 {[%clk 0:01:54]} 18. Qe2 {[%clk 0:01:38]}  Rae8 {[%clk 0:01:43]} 19. Qg4 {[%clk 0:01:34]}  Nf6 {[%clk 0:01:42]} 20. Qg5 {[%clk 0:01:32]}  Qe5 {[%clk 0:01:37]} 21. Qxe5 {[%clk 0:01:25]}  Rxe5 {[%clk 0:01:38]} 22. Bf4 {[%clk 0:01:16]}  Rxe1+ {[%clk 0:01:37]} 23. Rxe1 {[%clk 0:01:17]}  Rd8 {[%clk 0:01:37]} 24. Nb3 {[%clk 0:01:13]}  Nxb3 {[%clk 0:01:28]} 25. Bxb3 {[%clk 0:01:11]}  Re8 {[%clk 0:01:22]} 26. Rxe8+ {[%clk 0:01:09]}  Nxe8 {[%clk 0:01:22]} 27. a4 {[%clk 0:01:07]}  Nf6 {[%clk 0:01:07]} 28. Bc7 {[%clk 0:00:58]}  b5 {[%clk 0:01:06]} 29. axb5 {[%clk 0:00:56]}  axb5 {[%clk 0:01:06]} 30. f3 {[%clk 0:00:50]}  Bd5 {[%clk 0:00:58]} 31. Bxd5 {[%clk 0:00:44]}  Nxd5 {[%clk 0:00:58]} 32. Be5 {[%clk 0:00:42]}  f6 {[%clk 0:00:55]} 33. Bd4 {[%clk 0:00:37]}  Kf7 {[%clk 0:00:52]} 34. Kf2 {[%clk 0:00:34]}  Ke6 {[%clk 0:00:53]} 35. Ke2 {[%clk 0:00:30]}  Nf4+ {[%clk 0:00:52]} 36. Kf2 {[%clk 0:00:28]}  Kd5 {[%clk 0:00:53]} 37. Be3 {[%clk 0:00:26]}  Ne6 {[%clk 0:00:47]} 38. Ke2 {[%clk 0:00:16]}  Kc4 {[%clk 0:00:48]} 39. Kd2 {[%clk 0:00:12]}  Nc7 {[%clk 0:00:46]} 40. Bf4 {[%clk 0:00:10]}  Nd5 {[%clk 0:00:46]} 41. Bd6 {[%clk 0:00:08]}  b4 {[%clk 0:00:47]} 42. Kc2 {[%clk 0:00:06]}  Ne3+ {[%clk 0:00:47]} 43. Kb2 {[%clk 0:00:04]}  Nxg2 {[%clk 0:00:47]} 44. Bf8 {[%clk 0:00:01]}  g6 {[%clk 0:00:47]} 45. Bg7 {[%clk 0:00:02]}  f5 {[%clk 0:00:48]} 46. Bf6 {[%clk 0:00:02]}  Ne1 {[%clk 0:00:47]} 47. h4 {[%clk 0:00:03]}  Nxf3 {[%clk 0:00:47]} 48. h5 {[%clk 0:00:03]}  gxh5 {[%clk 0:00:47]} 49. Bg7 {[%clk 0:00:03]}  h4 {[%clk 0:00:48]} 50. Bf8 {[%clk 0:00:02]}  h3 {[%clk 0:00:49]} 51. Bd6 {[%clk 0:00:02]}  h2 {[%clk 0:00:49]} 0-1


[Site "https://www.chess.com"]

[Event "Titled Tuesday Blitz March 15 Early 2022"]
[White "Alinasab, Mobina"]
[Black "Maltsevskaya, Aleksandra"]
[WhiteFideId "12528897"]
[BlackFideId "24174041"]
[WhiteElo "2052"]
[BlackElo "2241"]
[Result "0-1"]
[Round "07"]
[TimeControl "180+1"]
[Date "2022.03.15"]
[WhiteClock "0:00:06"]
[BlackClock "0:01:09"]

1. e4 {[%clk 0:02:49]}  c5 {[%clk 0:02:59]} 2. Nf3 {[%clk 0:02:49]}  e6 {[%clk 0:03:00]} 3. d4 {[%clk 0:02:50]}  cxd4 {[%clk 0:03:01]} 4. Nxd4 {[%clk 0:02:51]}  Nc6 {[%clk 0:03:02]} 5. Nc3 {[%clk 0:02:51]}  Nf6 {[%clk 0:03:02]} 6. Ndb5 {[%clk 0:02:50]}  Bc5 {[%clk 0:03:02]} 7. Bf4 {[%clk 0:02:47]}  O-O {[%clk 0:03:02]} 8. Bd6 {[%clk 0:02:40]}  Bxd6 {[%clk 0:03:01]} 9. Nxd6 {[%clk 0:02:41]}  a6 {[%clk 0:03:02]} 10. Be2 {[%clk 0:02:40]}  b5 {[%clk 0:03:02]} 11. O-O {[%clk 0:02:30]}  Ne8 {[%clk 0:02:55]} 12. a4 {[%clk 0:02:24]}  b4 {[%clk 0:02:54]} 13. Na2 {[%clk 0:02:24]}  Qc7 {[%clk 0:02:51]} 14. Nxe8 {[%clk 0:02:22]}  Rxe8 {[%clk 0:02:52]} 15. c3 {[%clk 0:02:23]}  Rb8 {[%clk 0:02:42]} 16. cxb4 {[%clk 0:02:20]}  Nxb4 {[%clk 0:02:43]} 17. Rc1 {[%clk 0:02:18]}  Qe5 {[%clk 0:02:37]} 18. Nc3 {[%clk 0:02:02]}  d5 {[%clk 0:02:37]} 19. exd5 {[%clk 0:01:46]}  exd5 {[%clk 0:02:17]} 20. Bf3 {[%clk 0:01:44]}  Be6 {[%clk 0:02:17]} 21. Re1 {[%clk 0:01:39]}  Qf6 {[%clk 0:02:05]} 22. a5 {[%clk 0:01:02]}  d4 {[%clk 0:02:00]} 23. Ne4 {[%clk 0:01:01]}  Qd8 {[%clk 0:01:58]} 24. Nc5 {[%clk 0:01:00]}  Qxa5 {[%clk 0:01:55]} 25. Qd2 {[%clk 0:00:18]}  Bf5 {[%clk 0:01:40]} 26. Rxe8+ {[%clk 0:00:16]}  Rxe8 {[%clk 0:01:41]} 27. Qxd4 {[%clk 0:00:12]}  Nc2 {[%clk 0:01:41]} 28. Qc3 {[%clk 0:00:13]}  Qd8 {[%clk 0:01:21]} 29. h3 {[%clk 0:00:12]}  Qg5 {[%clk 0:01:10]} 30. Rxc2 {[%clk 0:00:11]}  Bxc2 {[%clk 0:01:09]} 31. Qxc2 {[%clk 0:00:11]}  Re1+ {[%clk 0:01:07]} 32. Kh2 {[%clk 0:00:11]}  Qf4+ {[%clk 0:01:08]} 33. g3 {[%clk 0:00:06]}  Qxf3 {[%clk 0:01:09]} 0-1


[Site "https://www.chess.com"]

[Event "Titled Tuesday Blitz March 15 Early 2022"]
[White "Arabidze, Meri"]
[Black "Moroni, Luca Jr"]
[WhiteFideId "13604040"]
[BlackFideId "865834"]
[WhiteElo "2335"]
[BlackElo "2573"]
[Result "0-1"]
[Round "07"]
[TimeControl "180+1"]
[Date "2022.03.15"]
[WhiteClock "0:00:01"]
[BlackClock "0:00:02"]

1. d4 {[%clk 0:03:00]}  c5 {[%clk 0:02:58]} 2. d5 {[%clk 0:03:00]}  g6 {[%clk 0:02:57]} 3. Nc3 {[%clk 0:03:00]}  Bg7 {[%clk 0:02:58]} 4. e4 {[%clk 0:03:00]}  a6 {[%clk 0:02:58]} 5. a4 {[%clk 0:03:00]}  d6 {[%clk 0:02:59]} 6. Be2 {[%clk 0:02:59]}  Nf6 {[%clk 0:02:58]} 7. Nf3 {[%clk 0:03:00]}  O-O {[%clk 0:02:59]} 8. O-O {[%clk 0:03:00]}  Bg4 {[%clk 0:02:59]} 9. Nd2 {[%clk 0:03:00]}  Bxe2 {[%clk 0:02:58]} 10. Qxe2 {[%clk 0:03:01]}  Nbd7 {[%clk 0:02:58]} 11. Nc4 {[%clk 0:03:00]}  Qc7 {[%clk 0:02:56]} 12. Re1 {[%clk 0:02:57]}  Rfb8 {[%clk 0:02:57]} 13. a5 {[%clk 0:02:53]}  b5 {[%clk 0:02:57]} 14. axb6 {[%clk 0:02:53]}  Nxb6 {[%clk 0:02:57]} 15. Na5 {[%clk 0:02:54]}  e6 {[%clk 0:02:54]} 16. dxe6 {[%clk 0:02:37]}  fxe6 {[%clk 0:02:55]} 17. e5 {[%clk 0:02:35]}  dxe5 {[%clk 0:02:50]} 18. Ne4 {[%clk 0:02:30]}  Nxe4 {[%clk 0:02:46]} 19. Qxe4 {[%clk 0:02:30]}  Nd5 {[%clk 0:02:46]} 20. c3 {[%clk 0:02:18]}  Rf8 {[%clk 0:02:34]} 21. Nc4 {[%clk 0:02:04]}  Rf5 {[%clk 0:02:29]} 22. f3 {[%clk 0:02:04]}  h5 {[%clk 0:02:21]} 23. Ne3 {[%clk 0:02:00]}  Rd8 {[%clk 0:02:00]} 24. Nxf5 {[%clk 0:01:49]}  exf5 {[%clk 0:02:01]} 25. Qc4 {[%clk 0:01:48]}  Kh7 {[%clk 0:01:58]} 26. Rxa6 {[%clk 0:01:46]}  Qb7 {[%clk 0:01:52]} 27. Ra2 {[%clk 0:01:30]}  Qc6 {[%clk 0:01:34]} 28. Bg5 {[%clk 0:01:22]}  Rd7 {[%clk 0:01:33]} 29. h4 {[%clk 0:01:10]}  Nb6 {[%clk 0:01:31]} 30. Qe2 {[%clk 0:00:55]}  c4 {[%clk 0:01:21]} 31. Rd1 {[%clk 0:00:52]}  Rb7 {[%clk 0:01:00]} 32. Ra5 {[%clk 0:00:51]}  Na4 {[%clk 0:00:50]} 33. Kh2 {[%clk 0:00:28]}  Rxb2 {[%clk 0:00:45]} 34. Qe3 {[%clk 0:00:28]}  e4 {[%clk 0:00:42]} 35. Ra7 {[%clk 0:00:18]}  Rb7 {[%clk 0:00:38]} 36. Rxb7 {[%clk 0:00:17]}  Qxb7 {[%clk 0:00:39]} 37. fxe4 {[%clk 0:00:17]}  Nxc3 {[%clk 0:00:38]} 38. Rc1 {[%clk 0:00:05]}  Nxe4 {[%clk 0:00:35]} 39. Rxc4 {[%clk 0:00:05]}  Qd5 {[%clk 0:00:33]} 40. Rc2 {[%clk 0:00:04]}  Qd1 {[%clk 0:00:22]} 41. Re2 {[%clk 0:00:03]}  Be5+ {[%clk 0:00:20]} 42. Bf4 {[%clk 0:00:02]}  Bd4 {[%clk 0:00:13]} 43. Qf3 {[%clk 0:00:01]}  Qg1+ {[%clk 0:00:11]} 44. Kh3 {[%clk 0:00:02]}  Qh1+ {[%clk 0:00:10]} 45. Bh2 {[%clk 0:00:02]}  Qb1 {[%clk 0:00:09]} 46. Qf4 {[%clk 0:00:03]}  Qd3+ {[%clk 0:00:06]} 47. Qf3 {[%clk 0:00:03]}  Qc4 {[%clk 0:00:04]} 48. Re1 {[%clk 0:00:02]}  Nf2+ {[%clk 0:00:02]} 49. Kg3 {[%clk 0:00:02]}  Qc7+ {[%clk 0:00:02]} 50. Qf4 {[%clk 0:00:02]}  Qxf4+ {[%clk 0:00:02]} 51. Kxf4 {[%clk 0:00:02]}  Nd3+ {[%clk 0:00:03]} 52. Kg5 {[%clk 0:00:01]}  Nxe1 {[%clk 0:00:04]} 53. Bf4 {[%clk 0:00:01]}  Nxg2 {[%clk 0:00:03]} 54. Bd6 {[%clk 0:00:01]}  Ne1 {[%clk 0:00:02]} 0-1


[Site "https://www.chess.com"]

[Event "Titled Tuesday Blitz March 15 Early 2022"]
[White "Aravindh, Chithambaram VR."]
[Black "Bluebaum, Matthias"]
[WhiteFideId "5072786"]
[BlackFideId "24651516"]
[WhiteElo "2561"]
[BlackElo "2550"]
[Result "1-0"]
[Round "07"]
[TimeControl "180+1"]
[Date "2022.03.15"]
[WhiteClock "0:00:04"]
[BlackClock "0:00:01"]

1. b3 {[%clk 0:03:00]}  d5 {[%clk 0:03:00]} 2. Bb2 {[%clk 0:03:00]}  Bf5 {[%clk 0:03:00]} 3. Nf3 {[%clk 0:02:59]}  Nf6 {[%clk 0:02:59]} 4. e3 {[%clk 0:02:59]}  e6 {[%clk 0:02:59]} 5. h3 {[%clk 0:02:56]}  h6 {[%clk 0:02:59]} 6. c4 {[%clk 0:02:56]}  c6 {[%clk 0:02:59]} 7. Nc3 {[%clk 0:02:54]}  Nbd7 {[%clk 0:03:00]} 8. d4 {[%clk 0:02:47]}  Bd6 {[%clk 0:02:56]} 9. Bd3 {[%clk 0:02:47]}  Bxd3 {[%clk 0:02:53]} 10. Qxd3 {[%clk 0:02:47]}  O-O {[%clk 0:02:53]} 11. O-O {[%clk 0:02:46]}  a5 {[%clk 0:02:20]} 12. e4 {[%clk 0:02:28]}  dxe4 {[%clk 0:02:19]} 13. Nxe4 {[%clk 0:02:29]}  Nxe4 {[%clk 0:02:20]} 14. Qxe4 {[%clk 0:02:30]}  a4 {[%clk 0:02:21]} 15. g3 {[%clk 0:02:15]}  Qa5 {[%clk 0:02:18]} 16. Kg2 {[%clk 0:02:12]}  Rfd8 {[%clk 0:01:47]} 17. Rfd1 {[%clk 0:01:46]}  Be7 {[%clk 0:01:35]} 18. Qc2 {[%clk 0:01:36]}  Bf6 {[%clk 0:01:29]} 19. Bc3 {[%clk 0:01:35]}  Qa6 {[%clk 0:01:29]} 20. Ne5 {[%clk 0:01:26]}  Nxe5 {[%clk 0:01:24]} 21. dxe5 {[%clk 0:01:27]}  Be7 {[%clk 0:01:25]} 22. Qe4 {[%clk 0:01:24]}  b5 {[%clk 0:00:56]} 23. h4 {[%clk 0:00:54]}  b4 {[%clk 0:00:54]} 24. Bd4 {[%clk 0:00:46]}  c5 {[%clk 0:00:47]} 25. Be3 {[%clk 0:00:46]}  Bf8 {[%clk 0:00:23]} 26. Rab1 {[%clk 0:00:35]}  axb3 {[%clk 0:00:21]} 27. axb3 {[%clk 0:00:36]}  Qa2 {[%clk 0:00:21]} 28. h5 {[%clk 0:00:17]}  Rac8 {[%clk 0:00:16]} 29. Re1 {[%clk 0:00:09]}  Rc7 {[%clk 0:00:13]} 30. Rbd1 {[%clk 0:00:07]}  Rcd7 {[%clk 0:00:12]} 31. Rxd7 {[%clk 0:00:07]}  Rxd7 {[%clk 0:00:13]} 32. Qc6 {[%clk 0:00:06]}  Rd3 {[%clk 0:00:08]} 33. Qc8 {[%clk 0:00:05]}  Qa5 {[%clk 0:00:03]} 34. Rh1 {[%clk 0:00:04]}  Rxb3 {[%clk 0:00:03]} 35. Rd1 {[%clk 0:00:03]}  Rxe3 {[%clk 0:00:02]} 36. Rd8 {[%clk 0:00:03]}  Rxg3+ {[%clk 0:00:01]} 37. Kxg3 {[%clk 0:00:03]}  Kh7 {[%clk 0:00:02]} 38. Rxf8 {[%clk 0:00:03]}  Qa3+ {[%clk 0:00:03]} 39. f3 {[%clk 0:00:03]}  Qxf3+ {[%clk 0:00:01]} 40. Kxf3 {[%clk 0:00:04]} 1-0


[Site "https://www.chess.com"]

[Event "Titled Tuesday Blitz March 15 Early 2022"]
[White "Baches Garcia, Guillermo"]
[Black "Royal, Shreyas"]
[WhiteFideId "2209764"]
[BlackFideId "448869"]
[WhiteElo "2425"]
[BlackElo "1986"]
[Result "1/2-1/2"]
[Round "07"]
[TimeControl "180+1"]
[Date "2022.03.15"]
[WhiteClock "0:01:26"]
[BlackClock "0:01:59"]

1. e4 {[%clk 0:03:00]}  e5 {[%clk 0:02:55]} 2. Nf3 {[%clk 0:03:01]}  Nc6 {[%clk 0:02:55]} 3. Nc3 {[%clk 0:03:01]}  Nf6 {[%clk 0:02:54]} 4. d4 {[%clk 0:03:02]}  exd4 {[%clk 0:02:55]} 5. Nxd4 {[%clk 0:03:02]}  Bb4 {[%clk 0:02:56]} 6. Nxc6 {[%clk 0:03:03]}  bxc6 {[%clk 0:02:56]} 7. Bd3 {[%clk 0:03:03]}  d5 {[%clk 0:02:56]} 8. Bd2 {[%clk 0:03:03]}  Bxc3 {[%clk 0:02:53]} 9. Bxc3 {[%clk 0:03:04]}  dxe4 {[%clk 0:02:53]} 10. Bxf6 {[%clk 0:03:02]}  Qxf6 {[%clk 0:02:54]} 11. Qe2 {[%clk 0:03:01]}  O-O {[%clk 0:02:53]} 12. Qxe4 {[%clk 0:02:55]}  g6 {[%clk 0:02:45]} 13. O-O {[%clk 0:02:53]}  Bf5 {[%clk 0:02:46]} 14. Qf3 {[%clk 0:02:53]}  Rad8 {[%clk 0:02:35]} 15. Bxf5 {[%clk 0:02:50]}  gxf5 {[%clk 0:02:35]} 16. Rad1 {[%clk 0:02:38]}  Rxd1 {[%clk 0:02:30]} 17. Rxd1 {[%clk 0:02:38]}  Rd8 {[%clk 0:02:31]} 18. b3 {[%clk 0:02:13]}  Rxd1+ {[%clk 0:02:15]} 19. Qxd1 {[%clk 0:02:14]}  Qe5 {[%clk 0:02:15]} 20. g3 {[%clk 0:02:03]}  Kg7 {[%clk 0:02:14]} 21. a4 {[%clk 0:02:01]}  Kf6 {[%clk 0:02:11]} 22. Qf3 {[%clk 0:02:00]}  Qd5 {[%clk 0:02:10]} 23. Qc3+ {[%clk 0:01:48]}  Ke6 {[%clk 0:02:08]} 24. Qe3+ {[%clk 0:01:47]}  Qe4 {[%clk 0:02:03]} 25. Qxa7 {[%clk 0:01:35]}  Qe1+ {[%clk 0:02:02]} 26. Kg2 {[%clk 0:01:34]}  Qe4+ {[%clk 0:02:03]} 27. Kg1 {[%clk 0:01:26]}  Qe1+ {[%clk 0:01:58]} 28. Kg2 {[%clk 0:01:26]}  Qe4+ {[%clk 0:01:59]} 1/2-1/2


[Site "https://www.chess.com"]

[Event "Titled Tuesday Blitz March 15 Early 2022"]
[White "Barp, Alberto"]
[Black "Babazada, Khazar"]
[WhiteFideId "872555"]
[BlackFideId "13413554"]
[WhiteElo "2229"]
[BlackElo "2418"]
[Result "0-1"]
[Round "07"]
[TimeControl "180+1"]
[Date "2022.03.15"]
[WhiteClock "0:00:03"]
[BlackClock "0:00:11"]

1. d4 {[%clk 0:03:00]}  Nf6 {[%clk 0:02:59]} 2. Bg5 {[%clk 0:02:57]}  e6 {[%clk 0:02:58]} 3. e4 {[%clk 0:02:56]}  h6 {[%clk 0:02:58]} 4. Bxf6 {[%clk 0:02:57]}  Qxf6 {[%clk 0:02:59]} 5. c3 {[%clk 0:02:57]}  d6 {[%clk 0:02:56]} 6. Bd3 {[%clk 0:02:56]}  Nc6 {[%clk 0:02:55]} 7. Ne2 {[%clk 0:02:54]}  e5 {[%clk 0:02:55]} 8. d5 {[%clk 0:02:53]}  Nb8 {[%clk 0:02:46]} 9. Nd2 {[%clk 0:02:53]}  h5 {[%clk 0:02:45]} 10. Ng3 {[%clk 0:02:40]}  h4 {[%clk 0:02:44]} 11. Nf5 {[%clk 0:02:40]}  g6 {[%clk 0:02:41]} 12. Ne3 {[%clk 0:02:40]}  Qg5 {[%clk 0:02:32]} 13. Nf3 {[%clk 0:02:37]}  Qh5 {[%clk 0:02:32]} 14. h3 {[%clk 0:02:36]}  Nd7 {[%clk 0:02:30]} 15. Ng4 {[%clk 0:02:33]}  Bg7 {[%clk 0:02:21]} 16. Be2 {[%clk 0:02:18]}  Qh7 {[%clk 0:02:21]} 17. Ng5 {[%clk 0:02:16]}  Qg8 {[%clk 0:02:19]} 18. Qa4 {[%clk 0:02:09]}  Qf8 {[%clk 0:02:10]} 19. Bb5 {[%clk 0:01:56]}  Qe7 {[%clk 0:02:09]} 20. Nf3 {[%clk 0:01:55]}  Kf8 {[%clk 0:02:06]} 21. Qc2 {[%clk 0:01:51]}  a6 {[%clk 0:02:06]} 22. Be2 {[%clk 0:01:50]}  a5 {[%clk 0:02:01]} 23. b4 {[%clk 0:01:41]}  Nb6 {[%clk 0:01:56]} 24. Ne3 {[%clk 0:01:32]}  Bh6 {[%clk 0:01:53]} 25. O-O {[%clk 0:01:27]}  Bf4 {[%clk 0:01:49]} 26. Nh2 {[%clk 0:01:23]}  Qg5 {[%clk 0:01:40]} 27. Neg4 {[%clk 0:01:22]}  f5 {[%clk 0:01:39]} 28. Nf3 {[%clk 0:01:21]}  Qe7 {[%clk 0:01:36]} 29. Ne3 {[%clk 0:01:14]}  Qf7 {[%clk 0:01:27]} 30. Bd3 {[%clk 0:01:10]}  fxe4 {[%clk 0:01:26]} 31. Bxe4 {[%clk 0:01:11]}  g5 {[%clk 0:01:26]} 32. Ng4 {[%clk 0:01:04]}  Bxg4 {[%clk 0:01:20]} 33. hxg4 {[%clk 0:01:04]}  Nxd5 {[%clk 0:01:20]} 34. Qd3 {[%clk 0:00:58]}  Nf6 {[%clk 0:01:19]} 35. Bf5 {[%clk 0:00:58]}  Re8 {[%clk 0:01:16]} 36. Nd2 {[%clk 0:00:50]}  Kg7 {[%clk 0:00:49]} 37. g3 {[%clk 0:00:47]}  Bxd2 {[%clk 0:00:45]} 38. Qxd2 {[%clk 0:00:46]}  Reg8 {[%clk 0:00:34]} 39. f4 {[%clk 0:00:35]}  gxf4 {[%clk 0:00:31]} 40. gxf4 {[%clk 0:00:36]}  Qd5 {[%clk 0:00:28]} 41. Qxd5 {[%clk 0:00:30]}  Nxd5 {[%clk 0:00:29]} 42. fxe5 {[%clk 0:00:29]}  dxe5 {[%clk 0:00:26]} 43. Rae1 {[%clk 0:00:28]}  Re8 {[%clk 0:00:22]} 44. bxa5 {[%clk 0:00:28]}  h3 {[%clk 0:00:20]} 45. Kh2 {[%clk 0:00:28]}  Nf4 {[%clk 0:00:18]} 46. Rd1 {[%clk 0:00:26]}  Kf6 {[%clk 0:00:17]} 47. Rd7 {[%clk 0:00:25]}  Rd8 {[%clk 0:00:16]} 48. Rfd1 {[%clk 0:00:25]}  Rxd7 {[%clk 0:00:14]} 49. Rxd7 {[%clk 0:00:25]}  Ra8 {[%clk 0:00:15]} 50. Rxc7 {[%clk 0:00:17]}  Rxa5 {[%clk 0:00:14]} 51. Rxb7 {[%clk 0:00:16]}  Rxa2+ {[%clk 0:00:15]} 52. Kg3 {[%clk 0:00:17]}  Rg2+ {[%clk 0:00:14]} 53. Kh4 {[%clk 0:00:16]}  h2 {[%clk 0:00:14]} 54. Rb6+ {[%clk 0:00:14]}  Ke7 {[%clk 0:00:14]} 55. Rb7+ {[%clk 0:00:12]}  Kd6 {[%clk 0:00:14]} 56. Rb1 {[%clk 0:00:03]}  Rg1 {[%clk 0:00:11]} 0-1


[Site "https://www.chess.com"]

[Event "Titled Tuesday Blitz March 15 Early 2022"]
[White "Bogumil, Tatiana"]
[Black "Shailendra, K Bajpai"]
[WhiteFideId "4110579"]
[BlackFideId "5014670"]
[WhiteElo "1761"]
[BlackElo "2242"]
[Result "1/2-1/2"]
[Round "07"]
[TimeControl "180+1"]
[Date "2022.03.15"]
[WhiteClock "0:00:14"]
[BlackClock "0:00:08"]

1. Nf3 {[%clk 0:03:00]}  c5 {[%clk 0:02:59]} 2. c4 {[%clk 0:02:59]}  g6 {[%clk 0:02:47]} 3. d4 {[%clk 0:02:55]}  cxd4 {[%clk 0:02:47]} 4. Nxd4 {[%clk 0:02:56]}  Bg7 {[%clk 0:02:46]} 5. Nc3 {[%clk 0:02:56]}  Nf6 {[%clk 0:02:46]} 6. e4 {[%clk 0:02:55]}  d6 {[%clk 0:02:45]} 7. Be2 {[%clk 0:02:55]}  O-O {[%clk 0:02:44]} 8. O-O {[%clk 0:02:55]}  Nc6 {[%clk 0:02:26]} 9. Be3 {[%clk 0:02:43]}  Bd7 {[%clk 0:02:15]} 10. f3 {[%clk 0:02:39]}  Rc8 {[%clk 0:02:11]} 11. Rc1 {[%clk 0:02:38]}  a6 {[%clk 0:02:10]} 12. b3 {[%clk 0:02:38]}  Qa5 {[%clk 0:02:05]} 13. Qd2 {[%clk 0:02:36]}  Rfd8 {[%clk 0:02:01]} 14. Rfd1 {[%clk 0:02:24]}  Nxd4 {[%clk 0:01:55]} 15. Bxd4 {[%clk 0:02:13]}  Nh5 {[%clk 0:01:55]} 16. Be3 {[%clk 0:01:57]}  b5 {[%clk 0:01:44]} 17. Nd5 {[%clk 0:01:47]}  Qxd2 {[%clk 0:01:38]} 18. Rxd2 {[%clk 0:01:39]}  Kf8 {[%clk 0:01:26]} 19. Nb6 {[%clk 0:01:27]}  Rb8 {[%clk 0:01:01]} 20. Nxd7+ {[%clk 0:01:25]}  Rxd7 {[%clk 0:01:01]} 21. c5 {[%clk 0:01:17]}  Rc7 {[%clk 0:00:52]} 22. Rdc2 {[%clk 0:01:11]}  dxc5 {[%clk 0:00:51]} 23. Rxc5 {[%clk 0:01:08]}  Rxc5 {[%clk 0:00:46]} 24. Rxc5 {[%clk 0:01:08]}  Nf6 {[%clk 0:00:43]} 25. Rc7 {[%clk 0:00:49]}  Ne8 {[%clk 0:00:40]} 26. Rc6 {[%clk 0:00:48]}  Ra8 {[%clk 0:00:39]} 27. a4 {[%clk 0:00:46]}  bxa4 {[%clk 0:00:33]} 28. bxa4 {[%clk 0:00:46]}  a5 {[%clk 0:00:34]} 29. Bb5 {[%clk 0:00:44]}  Nd6 {[%clk 0:00:30]} 30. Rb6 {[%clk 0:00:33]}  Bc3 {[%clk 0:00:27]} 31. Bc5 {[%clk 0:00:26]}  Rc8 {[%clk 0:00:24]} 32. Rc6 {[%clk 0:00:20]}  Rxc6 {[%clk 0:00:17]} 33. Bxc6 {[%clk 0:00:20]}  Bb4 {[%clk 0:00:05]} 34. Bd4 {[%clk 0:00:15]}  Nc4 {[%clk 0:00:04]} 35. Kf2 {[%clk 0:00:12]}  e6 {[%clk 0:00:04]} 36. f4 {[%clk 0:00:13]}  Ke7 {[%clk 0:00:04]} 37. e5 {[%clk 0:00:13]}  Na3 {[%clk 0:00:02]} 38. Ke3 {[%clk 0:00:12]}  Nc2+ {[%clk 0:00:02]} 39. Kd3 {[%clk 0:00:13]}  Nxd4 {[%clk 0:00:02]} 40. Kxd4 {[%clk 0:00:13]}  Be1 {[%clk 0:00:02]} 41. g4 {[%clk 0:00:13]}  h5 {[%clk 0:00:01]} 42. h3 {[%clk 0:00:12]}  hxg4 {[%clk 0:00:01]} 43. hxg4 {[%clk 0:00:13]}  Bg3 {[%clk 0:00:02]} 44. Ke4 {[%clk 0:00:13]}  Be1 {[%clk 0:00:03]} 45. Bb5 {[%clk 0:00:13]}  Bb4 {[%clk 0:00:04]} 46. f5 {[%clk 0:00:13]}  Bc3 {[%clk 0:00:04]} 47. fxg6 {[%clk 0:00:12]}  fxg6 {[%clk 0:00:04]} 48. Bc6 {[%clk 0:00:12]}  g5 {[%clk 0:00:04]} 49. Bb5 {[%clk 0:00:12]}  Bb4 {[%clk 0:00:04]} 50. Bc6 {[%clk 0:00:12]}  Bd2 {[%clk 0:00:04]} 51. Bb5 {[%clk 0:00:12]}  Bf4 {[%clk 0:00:05]} 52. Kd4 {[%clk 0:00:12]}  Bg3 {[%clk 0:00:03]} 53. Bc6 {[%clk 0:00:12]}  Bf4 {[%clk 0:00:04]} 54. Be4 {[%clk 0:00:11]}  Bg3 {[%clk 0:00:04]} 55. Bg6 {[%clk 0:00:11]}  Bf4 {[%clk 0:00:05]} 56. Ke4 {[%clk 0:00:12]}  Bg3 {[%clk 0:00:06]} 57. Kd4 {[%clk 0:00:12]}  Bh2 {[%clk 0:00:06]} 58. Ke4 {[%clk 0:00:13]}  Bf4 {[%clk 0:00:07]} 59. Kd4 {[%clk 0:00:13]}  Bh2 {[%clk 0:00:07]} 60. Ke4 {[%clk 0:00:13]}  Bf4 {[%clk 0:00:08]} 61. Kd4 {[%clk 0:00:14]}  Bh2 {[%clk 0:00:08]} 1/2-1/2


[Site "https://www.chess.com"]